Workbook

Sheet Sheet1
A1: MILLINERY ASSOCIATION OF AUSTRALIA 2017 HATS OFF TO ??? CONVENTION
A3: SPONSORSHIP | G3: MISC EXPENSES
A4: Item | B4: Company | C4: Value | D4: Amount Sold | E4: Income | G4: Item | H4: Cost
A5: Premium Platinum Sponsorship | C5: 5000 | D5: 0 | E5: =C5*D5 -> 0 | G5: Printing | H5: 2000
A6: Gold Sponsorship | C6: 2000 | D6: 0 | E6: =C6*D6 -> 0 | G6: Postage | H6: 300
A7: Silver Sponsorship | C7: 600 | D7: 0 | E7: 0 | G7: Advertising | H7: 5000
A8: Trade Table Full Week | C8: 550 | D8: 0 | E8: 0 | G8: Welcome Basket tutors | H8: 500
A9: Trade Table Extra Days | C9: 200 | D9: 0 | E9: 0 | G9: Photography | H9: 700
A10: Grand Finale Dinner | C10: 3000 | D10: 0 | E10: 0 | G10: Tutors welcome party | H10: 600
A11: Mystery Hat Competition | C11: 1500 | D11: 0 | E11: 0 | G11: Tutor Taxis | H11: 1200
A12: Cocktail Party | C12: 1000 | D12: 0 | E12: 0 | G12: Decoration GFD | H12: 500
G13: Misc Materials | H13: 400
A14: INCOME FROM SPONSORSHIP | D14: =SUM(D5:D12) -> 0 | E14: =SUM(E5:E12) -> 0 | G14: Lanyards | H14: 600
A16: TUTORS | G16: Free Tickets | H16: =1785+5280+240 -> 7305
A17: Item | C17: Value | D17: Total Tutors | E17: Expense | G17: Ball Entertainment | H17: 4500
A18: Workshop Tutors | C18: 600 | D18: =SUM(70+7.5) -> 77.5 | E18: =C18*D18 -> 46500 | G18: Masquerade Ball | H18: =120*200 -> 24000
A19: Seminar Tutors | C19: 80 | E19: =C19*D19 -> 0 | G19: Cocktail party | H19: =85*136 -> 11560
A20: Tutor travel | C20: 390 | E20: =C20*D20 -> 0 | G20: MHC Prize money | H20: 1100
A21: Tutor accommodation | C21: =SUM(150*7) -> 1050 | E21: =C21*D21 -> 0 | G21: College Costs | H21: 1000
A22: Tutor meals | C22: =20*7 -> 140 | E22: 0 | G22: Catering Tutors | H22: 1000
A23: Overseas Tutor fees & travel | C23: =SUM(600*4+100+3000) -> 5500 | E23: 0 | G23: Master Milliner Challenge | H23: =SUM(500+750) -> 1250
A24: Total Expense for tutors | E24: =SUM(E18:E23) -> 46500 | G24: TOTAL EXPENSES | H24: =SUM(H5:H19) -> 59165
A26: DELEGATES
A27: Delegates | B27: Average | C27: 561 | D27: 198 | E27: =C27*D27 -> 111078
A28: Functions | C28: =90*136+140*200 -> 40240 | E28: =+C28 -> 40240
A29: Total income from delegates | E29: =SUM(E27:E28) -> 151318
A30: OUTCOME
A31: Total Income | B31: Sponsorship, Delegate | E31: =+E14+E29 -> 151318
A32: Total Expenses | B32: Tutors, Misc Expenses | E32: =H24+E24 -> 105665
A33: PROFIT | E33: =E31-E32 -> 45653
